Cogmind - Beta 14 @@@ ROGUE MODE // 2025.05.04 @ 22:11:31 Player: shockman27 Result: Destroyed by D-53 Grenadier with Mini Grenade Launcher Performance ------------- Evolutions (0) 0 Regions Visited (2) 400 Robots Destroyed (39) 195 Value Destroyed (662) 662 Prototype IDs (4) 80 Alien Tech Used (0) 0 Bonus (0) 0 TOTAL SCORE: 1337 Bonus ------- None Cogmind --------- Core Integrity 0/250 Matter 239/300 Energy 96/125 System Corruption 0% Temperature Cool (18) Movement Treading (160) Location -10/Mines Parts ------- > --- POWER (1) -------- Light Ion Engine > --- PROPULSION (2) --- Light Treads Light Treads > --- UTILITY (2) ------ Large Storage Unit Light Armor Plating > --- WEAPON (2) ------- Improved Light Cannon Improved Light Cannon > --- INVENTORY (15) --- Light Nuclear Core Structural Scanner Machine Analyzer Seismic Detector ECM Suite Hacking Suite Recalibrator Beam Cannon Particle Cannon Particle Cannon Assault Rifle Mining Claw Peak State ------------ > --- POWER ------------ Ion Engine > --- PROPULSION ------- Light Treads Light Treads > --- UTILITY ---------- Large Storage Unit Recalibrator > --- WEAPON ----------- Improved Light Cannon Improved Light Cannon > --- INVENTORY -------- Light Ion Engine Light Ion Engine Light Nuclear Core Light Treads Machine Analyzer ECM Suite Light Armor Plating Hacking Suite Beam Cannon Particle Cannon Particle Cannon Assault Rifle Improved Light Cannon Flail Mining Claw [Rating: 14] Favorites ----------- Power Ion Engine Engine Ion Engine Propulsion Light Treads Treads Light Treads Wheel Armored Wheel Utility Large Storage Unit Device Seismic Detector Storage Large Storage Unit Protection Light Armor Plating Weapon Improved Light Cannon Energy Gun EM Pulse Gun Energy Cannon Beam Cannon Ballistic Gun Assault Rifle Ballistic Cannon Improved Light Cannon Launcher Grenade Launcher Impact Weapon Flail Slashing Weapon Mining Claw Build | -11 -10 -10 ------- Run | Yrd Mat Min Slots Evolved . | . . . Power . | . . . Propulsion . | . . . Utility . | . . . Weapon . | . . . Parts Attached 39 | 7 27 5 Power 3 | 1 1 1 Engine 3 | 1 1 1 Core . | . . . Reactor . | . . . Propulsion 7 | 2 4 1 Treads 3 | . 2 1 Leg . | . . . Wheel 4 | 2 2 . Hover . | . . . Flight . | . . . Utility 12 | 2 8 2 Device 5 | 1 3 1 Storage 2 | 1 1 . Processor . | . . . Hackware . | . . . Protection 5 | . 4 1 Artifact . | . . . Weapon 17 | 2 14 1 Energy Gun 1 | . 1 . Energy Cannon 3 | . 3 . Ballistic Gun 5 | 2 3 . Ballistic Cannon 3 | . 2 1 Launcher 1 | . 1 . Special Weapon . | . . . Impact Weapon 3 | . 3 . Slashing Weapon 1 | . 1 . Piercing Weapon . | . . . Special Melee Weapon . | . . . Unidentified Prototypes . | . . . Parts Lost 5 | . 2 3 Power 1 | . . 1 Propulsion 1 | . . 1 Utility 1 | . 1 . Weapon 2 | . 1 1 Highest Loss Streak 3 | . 1 3 To Critical Strikes . | . . . Average Slot Usage (%) 99 | . 99 100 Engine 14 | . 14 14 Treads 13 | . 9 28 Wheel 14 | . 18 . Device 9 | . 9 12 Storage 14 | . 14 14 Protection 4 | . 4 1 Energy Gun 1 | . 1 . Energy Cannon 9 | . 11 . Ballistic Gun 6 | . 8 . Ballistic Cannon 10 | . 5 28 Peak Build Rating 14 | 7 14 11 Average Rating 10 | 5 10 10 On Entrance 6 | . 7 11 Naked Turns . | . . . Heaviest Build 36 | 14 36 36 Greatest Support 40 | 20 40 40 Greatest Overweight (x) 1 | . 1 . Average Overweight (x) . | . . . Largest Inventory Capacity 15 | 8 15 15 Average Capacity 13 | 7 13 15 Most Carried 15 | 8 15 15 Average Carried 12 | 4 12 14 Final Capacity 15 | 8 15 15 Final Carried 15 | 8 15 12 Class Distribution -------------------- 100% | Mutant Dominant Class ---------------- Mutant | -10/Materials Mutant | -10/Mines Resources | -11 -10 -10 ----------- Run | Yrd Mat Min Matter Collected 938 | 296 596 46 Remotely . | . . . Salvage Created 1028 | 96 927 5 Parts 70 | 12 58 . Haulers Intercepted 2 | . 2 . Recyclers Shooed . | . . . Parts Field Recycled . | . . . Retrieved Matter . | . . . Parts Self-Destructed . | . . . Prevented . | . . . Kills | -11 -10 -10 ------- Run | Yrd Mat Min Combat Hostiles Destroyed 21 | . 20 1 Guns 3 | . 3 . Cannons 15 | . 14 1 AOE 3 | . 3 . Classes Destroyed 10 | 2 7 1 Worker 5 | . 5 . Tunneler 4 | 3 . 1 Hauler 2 | . 2 . Recycler 2 | 1 1 . Mechanic 1 | . 1 . Operator 2 | . 2 . Watcher 3 | . 3 . Swarmer 9 | . 9 . Grunt 11 | . 11 . Assembled 1 | . . 1 Best Kill Streak 5 | 2 5 1 Combat Bots Only 4 | . 4 1 Max Kills in Single Turn 2 | 1 2 1 Gunslinging . | . . . Exploded 1 | . 1 . Melee . | . . . Uniques/NPCs Destroyed . | . . . Combat | -11 -10 -10 -------- Run | Yrd Mat Min Hostile Shots Fired 131 | . 113 18 Missed 29 | . 28 1 Damage Taken 1539 | . 906 633 Core 254 | . 146 108 Absorbed by Shields . | . . . Core Remaining (%) 100 | 100 . . Volleys Fired 116 | 11 96 9 Largest 2 | 2 2 2 Hottest 136 | 40 136 78 Shots Fired 211 | 22 171 18 Gun 109 | 22 87 . Cannon 94 | . 76 18 Launcher 8 | . 8 . Special . | . . . Kinetic 119 | 22 79 18 Thermal 73 | . 73 . Explosive 8 | . 8 . Electromagnetic 11 | . 11 . Robot Hit Streak 19 | 4 19 8 Robot Miss Streak 5 | 2 5 3 Penetration Max . | . . . Secondary Targets . | . . . Shots Hit Robots 116 | 15 89 12 Core Hits 51 | 6 41 4 Critical Kills 1 | . 1 . Critical Parts Destroyed 3 | . 3 . Critical Strikes 6 | . 4 2 Destroy 1 | . 1 . Blast 2 | . . 2 Smash 3 | . 3 . Melee Attacks 12 | . 12 . Impact 12 | . 12 . Slashing . | . . . Piercing . | . . . Sneak Attacks 4 | . 4 . Combat Hostiles . | . . . Follow-up Attacks . | . . . Damage Inflicted 2330 | 156 1924 250 Guns 798 | 156 642 . Cannons 991 | . 741 250 Explosions 218 | . 218 . Melee 323 | . 323 . Ramming . | . . . Kinetic 1018 | 156 612 250 Thermal 767 | . 767 . Explosive 150 | . 150 . Electromagnetic 72 | . 72 . Impact 323 | . 323 . Slashing . | . . . Piercing . | . . . Highest Corruption . | . . . Average Corruption . | . . . Corruption Purged . | . . . Corruption Blocked . | . . . Overload Shots . | . . . Overflow Damage 285 | . 263 22 Projectiles 38 | . 16 22 Explosions 2 | . 2 . Melee 245 | . 245 . Knockbacks 5 | . . 5 Impact . | . . . Kinetic 5 | . . 5 Secondary . | . . . Self-Inflicted Damage . | . . . Shots . | . . . Rammed . | . . . Targets Rammed . | . . . Kicked . | . . . Crushed . | . . . Highest Temperature 397 | . 397 72 Average Temperature 93 | . 99 28 Received Heat Transfer 338 | . 318 20 Effects 3 | . 3 . Energy Bleed 1 | . 1 . Short Circuit 1 | . 1 . Damage (minor) 1 | . 1 . Siege Activations . | . . . Robots Corrupted 1 | . 1 . Combat Hostiles . | . . . Parts Fried 2 | . 2 . Impact Corruptions 6 | . 6 . Robots Melted . | . . . Combat Hostiles . | . . . Parts Melted 1 | . 1 . Heat Transferred 1506 | . 1506 . Parts Sabotaged . | . . . Parts Stolen . | . . . Parts Stripped . | . . . Power Chain Reactions 2 | . 2 . Alert | -11 -10 -10 ------- Run | Yrd Mat Min Peak Influence 344 | 20 344 98 Initial 93 | . 13 93 Average 172 | 8 210 83 Maximum Alert Level 1 | . 1 . Low Security (%) 56 | 100 40 100 Level 1 43 | . 59 . Level 2 . | . . . Level 3 . | . . . Level 4 . | . . . Level 5 . | . . . High Security . | . . . Max Security . | . . . Squads Dispatched 3 | . 3 . Investigation 1 | . 1 . Extermination . | . . . Reinforcement 2 | . 2 . Assault . | . . . Garrison . | . . . Intercept . | . . . Searches Triggered . | . . . Construction Impeded . | . . . Haulers Reinforced . | . . . Active Scanning Responses . | . . . Cargo Convoy Interrupts . | . . . Stealth | -11 -10 -10 --------- Run | Yrd Mat Min Distress Signals . | . . . Communications Jammed . | . . . Distress Signals . | . . . Times Spotted 38 | . 35 3 Peak Tracking Total 5 | . 5 2 Tactical Retreats 1 | . 1 . Traps | -11 -10 -10 ------- Run | Yrd Mat Min Traps Triggered 1 | . 1 . Indirectly . | . . . Trap Hack Attempts . | . . . Triggered . | . . . Disarmed . | . . . Reprogrammed . | . . . Reused . | . . . Traps Extracted . | . . . Installed . | . . . Triggered . | . . . Machines | -11 -10 -10 ---------- Run | Yrd Mat Min Machines Disabled 4 | . 4 . Max in Single Turn 1 | . 1 . Machines Repaired . | . . . Machines Dismantled . | . . . Machines Sabotaged . | . . . Overloaded Fab Kills . | . . . Hacking | -11 -10 -10 --------- Run | Yrd Mat Min Machines Accessed 7 | . 6 1 Terminals 7 | . 6 1 Fabricators . | . . . Repair Stations . | . . . Recycling Units . | . . . Scanalyzers . | . . . Garrison Access . | . . . Total Hacks 23 | . 21 2 Successful 12 | . 12 . Failed 11 | . 9 2 Catastrophic . | . . . Database Lockouts . | . . . Manual 15 | . 15 . Terminals 23 | . 21 2 Fabricators . | . . . Repair Stations . | . . . Recycling Units . | . . . Scanalyzers . | . . . Garrison Access . | . . . Terminal Hacks 8 | . 8 . Robot Analysis 2 | . 2 . Prototype ID Bank 2 | . 2 . Alert Level 1 | . 1 . Locate Traps 2 | . 2 . Dispatch Records 1 | . 1 . Fabricator Hacks . | . . . Repair Station Hacks . | . . . Recycling Unit Hacks . | . . . Scanalyzer . | . . . Garrison Access Hacks . | . . . Unauthorized Hacks 4 | . 4 . Terminals 4 | . 4 . Botnet 3 | . 3 . Operators 1 | . 1 . Fabricators . | . . . Repair Stations . | . . . Recycling Units . | . . . Scanalyzers . | . . . Garrison Access . | . . . Data Cores Recovered . | . . . Used . | . . . Hacking Detections 7 | . 6 1 Full Trace Events 1 | . 1 . Feedback Events . | . . . Feedback Blocked . | . . . Robot Schematics Acquired . | . . . Robots Built . | . . . Authchips . | . . . Time . | . . . Total Robot Build Rating . | . . . Part Schematics Acquired . | . . . Parts Built . | . . . Authchips . | . . . Time . | . . . Total Part Build Rating . | . . . Parts Repaired . | . . . Time . | . . . Parts Recycled . | . . . Recycled Matter . | . . . Retrieved Matter . | . . . Retrieved Components . | . . . Parts Scanalyzed . | . . . Part Schematics Acquired . | . . . Parts Damaged . | . . . Bothacking | -11 -10 -10 ------------ Run | Yrd Mat Min Used RIF Installer . | . . . Robots Hacked . | . . . Non-combat . | . . . Combat . | . . . Robot Hacks Applied . | . . . Relay Couplers Released . | . . . Fabnet Peak Effective % . | . . . Robots Rewired . | . . . Allies Hacked . | . . . Hacks Repelled . | . . . Allies | -11 -10 -10 -------- Run | Yrd Mat Min Total Allies . | . . . Largest Group . | . . . Highest-Rated Group . | . . . Highest-Rated Ally . | . . . Total Orders . | . . . Ally Attacks . | . . . Total Damage . | . . . Kills . | . . . Allies Corrupted . | . . . Allies Melted . | . . . Intel | -11 -10 -10 ------- Run | Yrd Mat Min Robot Analysis Total 2 | . 2 . Derelict Logs Recovered 1 | . . 1 Drone Launches . | . . . Drone Recoveries . | . . . Exploration | -11 -10 -10 ------------- Run | Yrd Mat Min Turns Passed 2224 | 132 1630 462 Spaces Moved 1358 | 98 996 264 Core 1 | 1 . . Treads 547 | . 283 264 Legs . | . . . Wheels 810 | 97 713 . Hover . | . . . Flight . | . . . Fastest Speed 50 | 50 80 160 Average Speed 121 | 79 115 160 Slowest Speed 240 | 80 240 160 Overloaded Moves . | . . . Propulsion Burnouts . | . . . Robots Hopped . | . . . Cave-ins Triggered . | . . . Exploration Rate (%) 49 | 6 99 43 Regions Visited 2 Branch Regions 1 Pre-discovered Areas 2 | . . 2 Known Exits Taken . | . . . Unknown Exits Taken 2 | 1 1 . Scrap Searched 1 | . . 1 Spaces Dug 5 | . 5 . Terrain Destroyed 36 | . 34 2 Melee 5 | . 5 . Projectile 2 | . . 2 AOE 29 | . 29 . Terrain Rammed . | . . . Walls Destroyed . | . . . Machines Disabled . | . . . Actions | -11 -10 -10 --------- Run | Yrd Mat Min Total 1695 | 128 1281 286 Wait 123 | 5 112 6 Move 1356 | 97 995 264 Hop . | . . . Pick Up 29 | 8 20 1 Fast Attach 11 | 7 4 . Attach 5 | . 2 3 Detach 1 | . 1 . Swap 23 | . 21 2 Drop 19 | . 18 1 Fire 116 | 11 96 9 Melee 12 | . 12 . Ram . | . . . Kick . | . . . Crush . | . . . Escape Stasis . | . . . Rewire . | . . . Trap . | . . . Miscellaneous . | . . . Route ------- -11/Scrapyard -10/Materials (discovered 5 exits: [*Mat x3] / *Min x2) -10/Mines (discovered 1 exit: [*Mat]) History --------- Turn | Location | Event 18 | -11/Scrapyard | Discovered new exit (range 16) 133 | -11/Scrapyard | Entered Materials 313 | -10/Materials | Build established: Mutant 373 | -10/Materials | Discovered new exit (range 5) 449 | -10/Materials | Discovered new exit (range 3) 519 | -10/Materials | Discovered new exit (range 12) 1218 | -10/Materials | Discovered new exit (range 15) 1433 | -10/Materials | Core integrity fell below 50% 1547 | -10/Materials | Discovered new exit (range 9) 1763 | -10/Materials | Entered Mines 1878 | -10/Mines | Assembled infested the area 2036 | -10/Mines | Learned location of Storage (-8) 2040 | -10/Mines | Discovered new exit (range 8) 2225 | -10/Mines | Destroyed by D-53 Grenadier with Mini Grenade Launcher Last Messages --------------- World map updated: -8/Materials. 02155_ A message is triggered: "If you're looking for Megawrench, sorry but we're not in our cave right now, after essentially being evicted by all these Unaware tunnelers." 02158_ "Blame H1-IDC, who apparently didn't care about the consequences of repeatedly making a mess in Materials. Shooting at robots and generally destroying stuff raised the alert level high enough to trigger assault squads over in the main complex, and they later decided the best way to defend their interests would be to start expanding in this direction." 02159_ Acquired 11 matter. 02170_ as-68460 knocked back. 02170_ as-68460 destroyed. 02178_ Acquired 5 matter. 02181_ Acquired 1 matter. 02210_ D-53 Grenadier Imp. Light Armor Plating blasted off. 02213_ Lgt. Treads destroyed. 02216_ The unstable cave ceiling collapses. 02221_ Ion Engine destroyed. 02221_ Imp. Light Cannon destroyed. 02223_ D-53 Grenadier knocked back. Map ----- +----------------------------------------------------+ | ???????#####?????????????????? | | ??????## ##????????????????? | | ??????# ######???????????? | | ??????# * #????????#### | | ??????## ### #???????## # | | ???????# ##?# #??????## | | ???????# ####??# #?????## | | ???????# #?????# ####### # | | ???????# #?????# ## | | ?????### #?????### #### ##? | | ???### ##??????# #??## ##?? | | ??## ##?????# #???####### | | ??# ##????#*#???????# | | ??## #????#%#???????# | | ???# #????# #???????# " | | ??## #????# #???????# " | | ??# #????# #???????# " | | ??# ##????# #???????# " | | ??# ##?????# #???????# | | ??# ##??????# #???????# | | ??## ############ #???????### | | ?## ## #?????????? | | ## # #########?????????? | | # ##????????????????? | | # t ##???????????????? | | @ d% ##?????????????## | | d ##??????????### | | % ##????????## | | ##; ! ######??## | | # ###=% !% #### | | ### #######?## |! ## | | ??##?????????# | | ?????????????## | | ??????????????## | | ???????????????# ## | | ???????????????# ###### | | ??????????????# #????## | | ???????????? ?????#### | | ??????????# ???????? | | ????????? ??????? | | ???????? ??????? | | ???????? ###?????? | | ??????? ##???????? | | ???????? #????????? | | ???????? #????????? | | ?????????? ## ????????? | | ??????????????## ?????????? | | ???????????????# ?????????? | | ????????????????? ?????????? | | ?????????????????????????????? | +----------------------------------------------------+ Best States ------------- Heat Dissipation 25 Energy Generation 10 Energy Capacity 250 Matter Stores 300 Matter Capacity 300 Sight Range 16 Terrain Scan Density 10 Armor Coverage 150 Evasion (%) 44 Recoil Reduction 2 Item Schematics ----------------- None Robot Schematics ------------------ None Fabricated ------------ Nothing Alien Tech Used ----------------- None Achievements -------------- None Challenges ------------ None Game ------ Seed GammaAmuletTriangulator Manual? 0 Play Time 00:23:24 Cumulative 69.4 hours Start 2025.05.04 @ 15:38:51 End 2025.05.04 @ 22:11:31 Sessions 2 Manual Loads 0 Difficulty Rogue Special Mode None Game No. 47 Rogue 43 Adventurer 4 Explorer 0 Win Type - Total 2 Types 1/0/0/1/0/0/0/0/0 Lore% 30 Gallery% 37 Achievement% 34 Wizard Run 0 Options --------- Layout 0 ASCII 0 Keyboard 1 Movement Vi Keybinds 0 Fullscreen 1 Font 24/Crisp Map View 76x50 Zoom Use 0% Tactical HUD 1 Map Filters NONE Filters NONE Steam 1 RUN: da7b5ae5-fb4c-42d6-be03-8b528051cfb9